bitfinex/quotes_ETHUSD_20250923
["timestamp","ask_amount","ask_price","bid_price","bid_amount"]
[1758609595828,0.694,4214.4,4214.3,0.1224]
[1758609596742,0.1184,4215.0,4214.3,0.1224]
[1758609596937,0.2251,4214.8,4214.3,0.1224]
[1758609597403,0.2251,4214.7,4214.3,0.1224]
[1758609597567,0.694,4214.7,4214.3,0.1224]
[1758609597863,0.2251,4214.7,4214.3,0.1224]
[1758609598035,2.59321559,4214.9,4214.3,0.1224]
[1758609598237,0.694,4214.9,4214.3,0.1224]
[1758609598436,2.37266536,4214.7,4214.3,0.1224]
[1758609598764,0.694,4214.6,4214.3,0.1224]
[1758609599379,2.372817,4214.4,4214.3,0.1224]
[1758609599580,2.372817,4214.4,4214.3,0.004]
[1758609599756,3.066817,4214.4,4214.3,0.004]
[1758609599962,0.694,4214.4,4214.3,0.004]
[1758609600470,3.066817,4214.4,4214.3,0.004]
[1758609600663,3.62260948,4214.4,4214.3,0.004]
[1758609600981,6.84321653,4214.4,4214.3,0.004]
[1758609603245,6.28742405,4214.4,4214.3,0.004]
[1758609603751,0.3435,4214.8,4214.3,0.004]
[1758609603947,0.3435,4214.8,4214.4,0.02372817]
[1758609603948,0.1184,4214.8,4214.4,0.02372817]
[1758609604168,0.4689,4215.4,4214.7,0.1184]
[1758609604169,0.1184,4215.4,4214.7,0.1184]
[1758609604361,0.1184,4215.4,4214.8,0.02372591]
[1758609604594,0.4120969,4215.4,4214.8,0.02372591]
[1758609604791,0.1184,4215.4,4214.8,2.3963154]
[1758609605149,0.1184,4215.4,4214.8,0.02372591]
[1758609606153,2.37231039,4215.3,4214.8,0.02372591]
[1758609606352,0.1184,4215.4,4214.8,0.02372591]
[1758609606753,0.694,4215.3,4214.7,0.1184]
[1758609607253,3.0663127,4215.3,4214.7,0.1184]
[1758609607655,0.694,4215.3,4214.8,0.02372591]
[1758609607886,0.2251,4215.3,4214.8,0.02372591]
[1758609608674,0.001,4215.6,4214.8,0.27520648]
[1758609608873,0.001,4215.6,4215.5,2.37219784]
[1758609609074,0.001,4215.6,4215.5,2.39591981]
[1758609609287,0.001,4215.6,4215.5,3.55273958]
[1758609609770,0.001,4215.6,4215.5,4.34473958]
[1758609610517,0.001,4215.6,4215.5,3.52901761]
[1758609610719,0.001,4215.6,4215.5,3.07921761]
[1758609611084,0.001,4215.6,4215.5,2.84901761]
[1758609611418,0.001,4215.6,4215.5,2.87273958]
[1758609611716,0.2261,4215.6,4215.1,2.37237484]
[1758609612022,0.695,4215.6,4215.2,2.37234627]
[1758609612192,0.2261,4215.6,4215.2,2.37234627]
[1758609612518,0.2261,4215.6,4214.3,2.37684631]
[1758609612519,0.2251,4215.5,4214.8,0.71315062]
[1758609612733,0.001,4215.6,4214.8,0.71315062]
[1758609612942,0.694,4215.4,4214.3,0.004]
[1758609613097,2.37264478,4214.8,4214.3,0.004]
[1758609613296,3.0,4215.1,4214.3,0.004]
[1758609613542,0.694,4214.7,4214.3,0.004]
[1758609614030,0.2251,4214.6,4214.3,0.004]
[1758609614277,0.694,4214.6,4214.3,0.004]
[1758609615241,0.694,4214.5,4214.3,0.004]
[1758609615585,0.7113,4214.4,4214.3,0.004]
[1758609618018,6.30561448,4214.4,4214.3,0.004]
[1758609618221,7.17344749,4214.4,4214.3,0.004]
[1758609619521,3.93279748,4214.4,4214.3,0.004]
[1758609619734,6.30561448,4214.4,4214.3,0.004]
[1758609620519,6.43847478,4214.4,4214.3,0.004]
[1758609620716,6.43847726,4214.4,4214.3,0.004]
[1758609620943,6.94870072,4214.4,4214.3,0.004]
[1758609621132,9.00105772,4214.4,4214.3,0.004]
[1758609621928,9.79305772,4214.4,4214.3,0.004]
[1758609623728,10.43034163,4214.4,4214.3,0.004]
[1758609624165,10.42980203,4214.4,4214.3,0.004]
[1758609626490,6.28327331,4214.3,4214.2,0.004]
[1758609626689,6.28327331,4214.3,4214.1,0.024]
[1758609626690,6.16492961,4214.2,4214.1,1e-08]
[1758609626889,7.70885332,4214.2,4214.1,1e-08]
[1758609627193,7.70885332,4214.2,4213.9,0.004]
[1758609627194,0.792,4214.0,4213.8,0.004]
[1758609627394,45.33099378,4213.9,4213.8,0.004]
[1758609627595,45.33099378,4213.9,4212.6,0.004]
[1758609627596,5.49155487,4213.8,4212.6,0.004]
[1758609627894,6.16526751,4213.6,4212.6,0.004]
[1758609628197,7.02939122,4213.6,4212.6,0.004]
[1758609628398,7.70919122,4213.6,4212.6,0.004]
[1758609628957,6.48199122,4213.6,4212.6,0.004]
[1758609629156,3.23739122,4213.6,4212.7,0.6596]
[1758609629397,3.28072776,4213.6,4212.7,0.6596]
[1758609629661,6.28072776,4213.6,4212.7,0.6596]
[1758609630271,7.4694437,4213.6,4212.6,0.004]
[1758609630476,8.2614437,4213.6,4212.6,0.004]
[1758609631995,7.5816437,4213.6,4212.6,0.004]
[1758609632196,4.41637619,4213.6,4212.9,0.4294]
[1758609632382,6.7896437,4213.6,4213.0,0.2302]
[1758609632562,6.28072776,4213.6,4213.0,0.2302]
[1758609633368,6.82799981,4213.6,4212.6,0.004]
[1758609633592,7.46902594,4213.6,4212.6,0.004]
[1758609634479,7.46824382,4213.6,4212.6,0.004]
[1758609635302,8.26024382,4213.6,4212.6,0.004]
[1758609635804,8.37901202,4213.6,4212.6,0.004]
[1758609638470,8.37901202,4213.6,4213.5,1e-08]
[1758609638691,6.28372384,4213.5,4213.4,1e-08]
[1758609638898,8.53352181,4213.5,4213.4,1e-08]
[1758609639106,9.21332181,4213.5,4213.4,1e-08]
[1758609639476,9.84982589,4213.5,4213.4,1e-08]
[1758609640283,9.21366495,4213.5,4213.4,1e-08]
[1758609640708,9.85048388,4213.5,4213.4,1e-08]
[1758609641114,9.21366495,4213.5,4213.4,1e-08]
[1758609642249,9.85114155,4213.5,4213.4,1e-08]
[1758609642398,10.06252568,4213.5,4213.4,1e-08]
[1758609642599,17.12252568,4213.5,4213.4,1e-08]
[1758609644017,15.48530907,4213.5,4213.4,1e-08]
[1758609645118,16.7693698,4213.5,4213.4,1e-08]
[1758609645333,15.92050907,4213.5,4213.4,1e-08]
[1758609645536,6.16538016,4213.4,4213.3,1e-08]
[1758609645803,2.37377453,4212.7,4212.6,0.004]
[1758609646007,7.02949449,4212.7,4212.6,0.004]
[1758609646420,6.67470328,4212.7,4212.6,0.004]
[1758609646614,6.89654036,4212.7,4212.6,0.004]
[1758609646935,7.0296426,4212.7,4212.6,0.004]
[1758609647139,7.36124034,4212.7,4212.6,0.004]
[1758609647339,8.06544034,4212.7,4212.6,0.004]
[1758609647833,8.91688029,4212.7,4212.6,0.004]
[1758609648012,39.22013397,4212.7,4212.6,1e-08]
[1758609648425,40.4972939,4212.7,4212.6,1e-08]
[1758609648636,39.22013397,4212.7,4212.6,1e-08]
[1758609648829,40.49800688,4212.7,4212.6,1e-08]
[1758609649256,39.57536278,4212.7,4212.6,1e-08]
[1758609649418,39.57536278,4212.7,4212.1,0.024]
[1758609649419,0.792,4212.2,4212.1,1e-08]
[1758609649620,7.03021387,4212.2,4212.1,1e-08]
[1758609649859,7.73441387,4212.2,4212.1,1e-08]
[1758609650569,3.16633815,4211.7,4211.6,1e-08]
[1758609650730,7.03049571,4211.7,4211.6,1e-08]
[1758609650916,8.21506141,4211.7,4211.6,1e-08]
[1758609651226,9.49290461,4211.7,4211.6,1e-08]
[1758609651624,9.49235575,4211.7,4211.6,1e-08]
[1758609652349,8.78815575,4211.7,4211.6,1e-08]
[1758609653119,9.02965575,4211.7,4211.6,1e-08]
[1758609653555,9.49235575,4211.7,4211.6,1e-08]
[1758609654425,9.02965575,4211.7,4211.6,1e-08]
[1758609654751,7.51031255,4211.7,4211.6,1e-08]
[1758609655321,7.75181255,4211.7,4211.6,1e-08]
[1758609656448,8.21451255,4211.7,4211.6,1e-08]
[1758609656847,7.51031255,4211.7,4211.6,1e-08]
[1758609657825,4.51031255,4211.7,4211.6,0.68920001]
[1758609658030,4.66741833,4211.7,4211.6,1e-08]
[1758609660326,3.87541833,4211.7,4211.6,1e-08]
[1758609660638,3.87546704,4211.7,4211.6,0.68920001]
[1758609660852,6.87546704,4211.7,4211.6,0.23020001]
[1758609661261,6.87546704,4211.7,4211.6,1e-08]
[1758609661473,6.23794685,4211.7,4211.6,1e-08]
[1758609662381,7.18416278,4211.7,4211.6,1e-08]
[1758609663259,10.9236087,4211.7,4211.6,1e-08]
[1758609663464,0.8636087,4211.7,4211.6,0.68920001]
[1758609663627,0.73025773,4211.7,4211.6,0.68920001]
[1758609663826,0.22132898,4211.7,4211.6,0.68920001]
[1758609664627,3.23883326,4211.7,4211.6,1e-08]
[1758609664850,3.80013994,4211.7,4211.6,1e-08]
[1758609665051,3.23883326,4211.7,4211.6,1e-08]
[1758609665250,3.23883326,4211.7,4211.6,0.68920001]
[1758609665964,3.23883326,4211.7,4211.6,1e-08]
[1758609666170,7.03083326,4211.7,4211.6,1e-08]
[1758609667054,6.23883326,4211.7,4211.6,0.68920001]
[1758609667645,6.23883326,4211.7,4211.6,1e-08]
[1758609667833,6.23883326,4211.7,4211.6,0.23020001]
[1758609668033,6.23883326,4211.7,4211.6,0.68920001]
[1758609668759,6.23883326,4211.7,4211.6,1e-08]
[1758609668961,7.97714078,4211.7,4211.6,1e-08]
[1758609669164,8.21864078,4211.7,4211.6,1e-08]
[1758609669353,8.61586947,4211.7,4211.6,1e-08]
[1758609669550,6.23883326,4211.7,4211.6,0.68920001]
[1758609669954,7.03083326,4211.7,4211.6,1e-08]
[1758609670145,7.27233326,4211.7,4211.6,1e-08]
[1758609670353,7.73503326,4211.7,4211.6,1e-08]
[1758609670533,8.58502031,4211.7,4211.6,1e-08]
[1758609670793,8.95934077,4211.7,4211.6,1e-08]
[1758609671023,10.23718397,4211.7,4211.6,1e-08]
[1758609671729,8.95934077,4211.7,4211.6,1e-08]
[1758609672329,3.16656367,4211.3,4211.2,1e-08]
[1758609672491,7.88407362,4211.3,4211.2,1e-08]
[1758609672687,8.18537319,4211.3,4211.2,1e-08]
[1758609673019,6.35805445,4211.3,4211.2,1e-08]
[1758609673587,6.35805445,4211.3,4211.2,0.68920001]
[1758609673823,6.35805445,4211.3,4211.2,1e-08]
[1758609674806,7.15005445,4211.3,4211.2,1e-08]
[1758609675141,6.16662006,4211.2,4211.1,0.024]
[1758609675343,3.16684563,4210.8,4210.7,0.004]
[1758609675516,7.03193641,4210.8,4210.7,0.004]
[1758609675845,7.70543641,4210.8,4210.7,0.004]
[1758609679406,7.27773641,4210.8,4210.7,0.004]
[1758609679910,7.03242746,4210.8,4210.7,0.004]
[1758609680248,7.68688563,4210.8,4210.7,0.004]
[1758609680451,8.37778563,4210.8,4210.7,0.004]
[1758609680746,7.93098563,4210.8,4210.7,0.004]
[1758609680942,7.93098563,4210.8,4210.6,0.004]
[1758609680943,6.28530203,4210.7,4210.6,0.004]
[1758609681152,8.91828269,4210.7,4210.6,0.004]
[1758609681348,9.80234906,4210.7,4210.6,0.004]
[1758609681645,9.55819824,4210.7,4210.6,0.004]
[1758609681848,9.43977004,4210.7,4210.6,0.004]
[1758609682148,8.80011332,4210.7,4210.6,0.004]
[1758609683005,8.80008302,4210.7,4210.6,0.004]
[1758609684127,9.43999857,4210.7,4210.6,0.004]
[1758609684314,8.80008302,4210.7,4210.6,0.004]
[1758609684514,9.43999857,4210.7,4210.6,0.004]
[1758609684711,10.13089857,4210.7,4210.6,0.004]
[1758609684961,16.55098302,4210.7,4210.6,0.004]
[1758609685506,2.37512766,4210.3,4210.2,0.004]
[1758609685719,7.03290982,4210.3,4210.2,0.004]
[1758609686009,7.68736799,4210.3,4210.2,0.004]
[1758609686410,7.93146799,4210.3,4210.2,0.004]
[1758609686665,7.68736799,4210.3,4210.2,0.004]
[1758609687228,7.93146799,4210.3,4210.2,0.004]
[1758609688321,7.93146799,4210.3,4210.1,0.024]
[1758609688322,6.28558407,4210.2,4210.1,0.024]
[1758609688526,9.11864408,4210.2,4210.1,0.024]
[1758609688920,8.87454408,4210.2,4210.1,0.024]
[1758609692829,8.87454408,4210.2,4210.1,0.6921]
[1758609692830,7.15136623,4210.2,4210.1,0.6921]
[1758609693827,7.15136623,4210.2,4210.1,0.024]
[1758609694929,7.39546623,4210.2,4210.1,0.024]
[1758609695137,7.15136623,4210.2,4210.1,0.024]
[1758609695368,7.15119169,4210.2,4210.1,0.024]
[1758609695957,4.77600762,4210.2,4210.1,0.024]
[1758609696157,4.77600762,4210.2,4210.1,0.6921]
[1758609696158,3.35919169,4210.2,4210.1,0.6921]
[1758609696359,3.35919169,4210.2,4210.1,0.024]
[1758609697735,0.98400762,4210.2,4210.1,0.6921]
[1758609697941,0.47369035,4210.2,4210.1,0.6921]
[1758609698135,5.84887442,4210.2,4210.1,0.6921]
[1758609698353,6.35919169,4210.2,4210.1,0.6921]
[1758609699761,3.98400762,4210.2,4210.1,0.6921]
[1758609699925,3.47369035,4210.2,4210.1,0.6921]
[1758609700128,3.98400762,4210.2,4210.1,0.6921]
[1758609700343,6.35919169,4210.2,4210.1,0.6921]
[1758609700564,3.98400762,4210.2,4210.1,0.6921]
[1758609701179,4.77600762,4210.2,4210.1,0.6921]
[1758609701379,7.15119169,4210.2,4210.1,0.6921]
[1758609701856,4.77600762,4210.2,4210.1,0.024]
[1758609702252,7.15119169,4210.2,4210.1,0.024]
[1758609703390,4.77600762,4210.2,4210.1,0.024]
[1758609703587,4.77600762,4210.2,4210.1,0.2542]
[1758609703964,3.98400762,4210.2,4210.1,0.2542]
[1758609704164,3.98400762,4210.2,4210.1,0.6921]
[1758609705260,0.98400762,4210.2,4210.1,0.6921]
[1758609705462,0.22205647,4210.2,4210.1,3.06734049]
[1758609705661,0.22205647,4210.2,4210.1,3.38631454]
[1758609706163,0.1184,4210.6,4210.1,3.41006694]
[1758609706391,0.35602981,4210.5,4210.1,2.74196694]
[1758609706572,0.22251863,4210.4,4210.2,3.0334823]
[1758609706768,2.37474567,4211.0,4210.1,0.36672645]
[1758609706769,0.75807616,4211.1,4210.4,0.1184]
[1758609706973,3.86871667,4211.0,4210.5,0.6583]
[1758609707174,0.86871667,4210.9,4210.6,0.6583]
[1758609707373,0.86871667,4210.8,4210.7,0.6583]
[1758609707568,0.86871667,4210.8,4210.4,0.1184]
[1758609707569,3.35602194,4210.8,4210.4,0.1184]
[1758609707782,3.0,4210.6,4210.1,0.024]
[1758609708013,2.37515628,4210.3,4210.1,0.024]
[1758609708168,0.35602194,4210.2,4210.1,0.024]
[1758609708384,0.59352194,4210.2,4210.1,0.024]
[1758609708715,6.4813174,4210.2,4210.1,0.024]
[1758609708887,8.26620678,4210.2,4210.1,0.024]
[1758609709210,8.95120678,4210.2,4210.1,0.024]
[1758609710109,8.50370678,4210.2,4210.1,0.024]
[1758609710312,8.95120678,4210.2,4210.1,0.024]
[1758609711787,9.80572989,4210.2,4210.1,0.024]
[1758609712217,8.95121421,4210.2,4210.1,0.024]
[1758609712514,9.80562921,4210.2,4210.1,0.024]
[1758609712883,8.95121421,4210.2,4210.1,0.024]
[1758609714180,9.8055174,4210.2,4210.1,0.024]
[1758609714386,8.26621421,4210.2,4210.1,0.024]
[1758609714629,9.80539136,4210.2,4210.1,0.024]
[1758609714796,7.47421421,4210.2,4210.1,0.024]
[1758609715141,8.15921421,4210.2,4210.1,0.024]
[1758609715425,8.95121421,4210.2,4210.1,0.024]
[1758609717936,9.8052514,4210.2,4210.1,0.024]
[1758609718102,8.95121421,4210.2,4210.1,0.024]
[1758609718435,9.80615312,4210.2,4210.1,0.024]
[1758609718990,9.12115312,4210.2,4210.1,0.024]
[1758609720388,8.26721421,4210.2,4210.1,0.024]
[1758609720790,2.3019926,4210.2,4210.1,0.6823]
[1758609720990,4.03682483,4210.2,4210.1,0.024]
[1758609721212,7.03682483,4210.2,4210.1,0.024]
[1758609721425,7.27432483,4210.2,4210.1,0.024]
[1758609721725,46.171454,4210.2,4210.1,0.024]
[1758609721903,48.19459933,4210.2,4210.1,0.024]
[1758609722821,9.05979973,4210.2,4210.1,0.024]
[1758609723186,9.70012887,4210.2,4210.1,0.024]
[1758609723403,7.67698354,4210.2,4210.1,0.024]
[1758609723603,4.66147033,4210.2,4210.1,0.2542]
[1758609723840,4.66147033,4210.2,4210.1,0.6823]
[1758609724214,7.0366544,4210.2,4210.1,0.6823]
[1758609724556,7.0366544,4210.2,4210.1,0.2542]
[1758609724833,3.98787033,4210.2,4210.1,0.6823]
[1758609725203,3.47525894,4210.2,4210.1,0.6823]
[1758609725639,3.34175071,4210.2,4210.1,0.6823]
[1758609725803,3.47512566,4210.2,4210.1,0.6823]
[1758609726204,3.35672566,4210.2,4210.1,0.6823]
[1758609726401,0.22335071,4210.2,4210.1,1.10923958]
[1758609726606,0.22335071,4210.2,4210.1,0.8007]
[1758609726841,0.001,4210.2,4210.1,0.8007]
[1758609727001,0.001,4210.2,4210.1,0.8244524]
[1758609727200,0.001,4210.2,4210.1,0.8007]
[1758609728544,0.001,4210.2,4210.1,0.1424]
[1758609728841,0.22322795,4210.2,4210.1,0.024]
[1758609729047,2.59841202,4210.2,4210.1,0.024]
[1758609729247,2.7317519,4210.2,4210.1,0.024]
[1758609729407,6.7612519,4210.2,4210.1,0.024]
[1758609729812,7.2732911,4210.2,4210.1,0.024]
[1758609730047,8.73038064,4210.2,4210.1,0.024]
[1758609731348,8.04538064,4210.2,4210.1,0.024]
[1758609731672,8.73038064,4210.2,4210.1,0.024]
[1758609732437,8.28288064,4210.2,4210.1,0.024]
[1758609732855,8.04538064,4210.2,4210.1,0.024]
[1758609733078,7.0357911,4210.2,4210.1,0.024]
[1758609733848,3.86860703,4210.2,4210.1,0.024]
[1758609734054,3.35656783,4210.2,4210.1,0.2542]
[1758609734374,7.0357911,4210.2,4210.1,0.024]
[1758609734676,7.7207911,4210.2,4210.1,0.024]
[1758609737775,7.0357911,4210.2,4210.1,0.024]
[1758609738578,7.0357911,4210.2,4210.1,0.7129]
[1758609738778,7.0357911,4210.2,4210.1,0.2521]
[1758609739090,7.0357911,4210.2,4210.1,0.024]
[1758609739307,7.03589424,4210.2,4210.1,0.024]
[1758609745672,7.26929424,4210.2,4210.1,0.024]
[1758609747708,8.78055538,4210.2,4210.1,0.024]
[1758609750611,8.10825538,4210.2,4210.1,0.024]
[1758609751113,8.74921564,4210.2,4210.1,0.024]
[1758609751669,7.03589424,4210.2,4210.1,0.2521]
[1758609751888,7.03589424,4210.2,4210.1,0.024]
[1758609752667,4.66071017,4210.2,4210.1,0.024]
[1758609752907,7.03589424,4210.2,4210.1,0.024]
[1758609753994,7.03589424,4210.2,4210.1,3.20654049]
[1758609753995,0.86871017,4210.2,4210.1,3.20654049]
[1758609754169,0.001,4210.7,4210.5,2.37501484]
[1758609754368,0.001,4210.7,4210.6,3.08760801]
[1758609754769,0.001,4210.7,4210.6,3.06385843]
[1758609754971,0.001,4210.7,4210.6,3.63149534]
[1758609755715,0.001,4210.7,4210.6,1.23278733]
[1758609755894,0.001,4210.7,4210.6,0.6889]
[1758609756610,0.001,4210.7,4210.6,3.06385843]
[1758609757108,0.001,4210.7,4210.6,0.6889]
[1758609757315,0.001,4210.7,4210.6,3.08760801]
[1758609757616,0.001,4210.7,4210.6,0.71264958]
[1758609757777,0.001,4210.7,4210.6,1.02141658]
[1758609757977,0.001,4210.7,4210.6,3.08760801]
[1758609758202,0.001,4210.7,4210.6,0.71264958]
[1758609758514,0.001,4210.7,4210.1,0.024]
[1758609758698,0.001,4210.7,4210.3,2.60317893]
[1758609759011,0.001,4210.7,4210.1,0.024]
[1758609759199,0.001,4210.7,4210.3,0.6889]
[1758609759573,0.001,4210.7,4210.4,0.6889]
[1758609759999,0.001,4210.7,4210.6,2.37495843]
[1758609760517,0.001,4210.7,4210.6,3.06385843]
[1758609761416,0.001,4210.7,4210.5,0.30640108]
[1758609761579,0.001,4210.7,4210.2,2.37518014]
[1758609761779,0.001,4210.7,4210.3,2.3751174]
[1758609761979,0.001,4210.7,4210.3,3.06402766]
[1758609762314,0.001,4210.7,4210.6,2.37495843]
[1758609762679,0.001,4210.7,4210.6,3.06385843]
[1758609762880,0.001,4210.7,4210.6,3.61012349]
[1758609763109,0.001,4210.7,4210.6,3.63387307]
[1758609763413,0.001,4210.7,4210.6,3.61012349]
[1758609764521,0.001,4210.7,4210.6,3.72852349]
[1758609765253,0.001,4210.7,4210.6,3.75227307]
[1758609766355,0.001,4210.7,4210.6,3.72852349]
[1758609774778,0.001,4210.7,4210.6,3.03962349]
[1758609776950,0.2507,4210.7,4210.6,3.03962349]
[1758609777340,0.001,4210.7,4210.6,0.1184]
[1758609777567,0.7032,4210.7,4210.6,0.1184]
[1758609778643,0.2507,4210.7,4210.6,2.49335843]
[1758609779374,0.001,4210.7,4210.6,2.49335843]
[1758609779539,0.001,4210.7,4210.6,2.51710801]
[1758609780840,0.001,4210.7,4210.6,0.1184]
[1758609781042,0.001,4210.7,4210.6,0.14214958]
[1758609781437,0.7032,4210.7,4210.6,0.1184]
[1758609781838,0.001,4210.7,4210.6,0.1184]
[1758609782068,0.001,4210.7,4210.6,0.14214958]
[1758609782839,0.001,4210.7,4210.6,0.1184]
[1758609783083,0.7032,4210.7,4210.6,0.1184]
[1758609785697,0.792,4210.6,4210.1,0.024]
[1758609785842,0.792,4210.4,4210.1,0.024]
[1758609786047,0.22234973,4210.3,4210.1,0.024]
[1758609786248,0.22234973,4210.2,4210.1,0.024]
[1758609786447,0.92454973,4210.2,4210.1,0.024]
[1758609786877,0.22234973,4210.2,4210.1,0.024]
[1758609787096,0.22234973,4210.2,4210.1,0.0477524]
[1758609787292,0.001,4210.7,4210.2,2.37518407]
[1758609787500,0.47194398,4210.6,4210.3,0.23991841]
[1758609787661,0.22224398,4210.5,4210.3,0.23991841]
[1758609787859,0.7022,4210.6,4210.3,2.61504542]
[1758609788054,0.22224544,4210.5,4210.4,2.37507125]
[1758609788270,0.001,4210.7,4210.4,2.87649329]
[1758609788475,0.22222569,4210.6,4210.4,0.50142204]
[1758609788809,0.001,4210.7,4210.4,2.87648018]
[1758609788955,0.22222422,4210.6,4210.4,0.50142204]
[1758609789157,0.001,4210.7,4210.4,0.50142204]
[1758609789158,0.001,4210.7,4210.4,2.87648242]
[1758609789381,0.22222103,4210.6,4210.4,2.87648242]
[1758609789578,0.2507,4210.7,4210.4,0.50142204]
[1758609789780,0.22223108,4210.6,4210.2,2.37518232]
[1758609789986,0.2507,4210.7,4210.4,2.37506826]
[1758609790300,0.2507,4210.7,4210.1,2.62602569]
[1758609790301,0.9244311,4210.6,4210.1,0.024]
[1758609790465,1.0142311,4210.5,4210.1,0.024]
[1758609790658,0.2222311,4210.4,4210.1,0.024]
[1758609790858,0.2222311,4210.3,4210.1,0.024]
[1758609791061,0.22224274,4210.2,4210.1,0.024]
[1758609791508,3.92444274,4210.2,4210.1,0.024]
[1758609791663,0.92444274,4210.2,4210.1,0.024]
[1758609793767,0.22224274,4210.2,4210.1,0.024]
[1758609793974,0.47194274,4210.2,4210.1,0.024]
[1758609794182,0.92444274,4210.2,4210.1,0.024]
[1758609794817,3.29962681,4210.2,4210.1,0.024]
[1758609794989,6.29962681,4210.2,4210.1,0.024]
[1758609795192,3.92444274,4210.2,4210.1,0.024]
[1758609796794,3.22224274,4210.2,4210.1,0.024]
[1758609800508,3.22203458,4210.2,4210.1,0.024]
[1758609800709,3.22203636,4210.2,4210.1,0.024]
[1758609801091,3.45593636,4210.2,4210.1,0.024]
[1758609801291,3.91823636,4210.2,4210.1,0.024]
[1758609802849,3.22203636,4210.2,4210.1,0.024]
[1758609803406,3.22203636,4210.2,4210.1,2.88349289]
[1758609803606,0.001,4210.7,4210.1,0.67044012]
[1758609803805,0.22212078,4210.6,4210.3,2.37508483]
[1758609804034,0.22212078,4210.5,4210.3,2.37508483]
[1758609804238,0.001,4210.7,4210.5,0.1184]
[1758609804445,0.22218972,4210.6,4210.5,0.1184]
[1758609805008,0.22218972,4210.6,4210.5,2.76651102]
[1758609805639,0.22218972,4210.6,4210.5,2.99571102]
[1758609806007,0.22218972,4210.6,4210.5,2.76651102]
[1758609806212,0.22218972,4210.6,4210.5,0.39149618]
[1758609806507,0.22218972,4210.6,4210.5,2.51716498]
[1758609806834,0.22218972,4210.6,4210.5,0.1184]
[1758609807842,0.91838972,4210.6,4210.5,0.1184]
[1758609809910,0.22218972,4210.6,4210.5,0.1184]
[1758609810110,0.22218972,4210.6,4210.5,3.18311484]
[1758609810315,0.001,4210.7,4210.6,2.37495843]
[1758609810616,0.001,4210.7,4210.6,3.08840801]
[1758609811110,0.001,4210.7,4210.6,3.18358752]
[1758609811446,0.001,4210.7,4210.6,3.15983794]
[1758609812211,0.001,4210.7,4210.6,3.18358752]
[1758609812447,0.001,4210.7,4210.6,3.80687013]
[1758609813577,0.001,4210.7,4210.6,3.78312055]
[1758609814318,0.001,4210.7,4210.6,3.80687013]
[1758609814514,0.001,4210.7,4210.6,3.92527013]
[1758609814832,0.001,4210.7,4210.6,6.92527013]
[1758609815032,0.001,4210.7,4210.6,6.90152055]
[1758609819469,0.001,4210.7,4210.6,6.21182055]
[1758609819668,0.001,4210.7,4210.6,6.90152055]
[1758609821470,0.001,4210.7,4210.6,6.44102055]
[1758609821646,0.001,4210.7,4210.6,6.21182055]
[1758609822653,0.2349,4210.7,4210.6,3.21182055]
[1758609823184,0.6972,4210.7,4210.6,3.21182055]
[1758609823352,0.2349,4210.7,4210.6,3.21182055]
[1758609823991,0.001,4210.7,4210.6,3.21182055]
[1758609824206,0.001,4210.7,4210.6,3.23557013]
[1758609826076,0.7036,4210.7,4210.6,3.21182055]
[1758609826288,0.7036,4210.7,4210.6,2.58853794]
[1758609827059,0.7036,4210.7,4210.6,2.49335843]
[1758609832020,0.2291,4210.7,4210.6,2.49335843]
[1758609833706,0.001,4210.7,4210.6,2.49335843]
[1758609835316,0.001,4210.7,4210.6,2.37495843]
[1758609835470,0.001,4210.7,4210.6,2.99127104]
[1758609836735,0.001,4210.7,4210.6,3.08645893]
[1758609837932,0.001,4210.7,4210.6,3.11020851]
[1758609838096,0.001,4210.7,4210.6,3.08645893]
[1758609838296,0.7036,4210.7,4210.6,3.08645893]
[1758609838497,0.001,4210.7,4210.6,3.57180851]
[1758609838692,0.001,4210.7,4210.6,3.77725893]
[1758609838892,0.001,4210.7,4210.6,3.08645893]
[1758609839334,0.001,4210.7,4210.6,3.11020851]
[1758609839642,0.001,4210.7,4210.6,3.08645893]
[1758609840807,0.7036,4210.7,4210.6,3.08645893]
[1758609841915,0.2291,4210.7,4210.6,3.08645893]
[1758609842329,0.7036,4210.7,4210.6,3.08645893]
[1758609846347,0.7036,4210.7,4210.6,2.49335843]
[1758609847464,0.001,4210.7,4210.6,2.49335843]
[1758609848215,0.001,4210.7,4210.6,2.96885843]
[1758609848740,0.7036,4210.7,4210.6,2.49335843]
[1758609849254,0.2291,4210.7,4210.6,2.49335843]
[1758609854166,0.7036,4210.7,4210.6,0.1184]
[1758609854552,2.2162024,4210.7,4210.3,0.4745]
[1758609854732,12.19554587,4210.5,4210.1,0.024]
[1758609854937,0.22268781,4210.4,4210.1,2.51763065]
[1758609855165,0.92528781,4210.3,4210.2,0.02375184]
[1758609855360,0.7026,4210.3,4210.2,2.37518407]
[1758609855675,0.2281,4210.3,4210.2,2.49358407]
[1758609856268,0.6639,4210.3,4210.2,2.49358407]
[1758609858056,0.001,4210.7,4210.2,2.49358407]
[1758609858057,0.001,4210.7,4210.6,2.37495843]
[1758609858461,0.2234514,4210.7,4210.6,2.37495843]
[1758609859305,0.4654514,4210.7,4210.5,2.51715936]
[1758609859502,0.243,4210.7,4210.5,2.51715936]
[1758609859667,0.4375,4210.7,4210.6,2.37495843]
[1758609859869,0.22342905,4210.7,4210.6,2.37495843]
[1758609860305,0.001,4210.7,4210.6,2.49335843]
[1758609860468,0.001,4210.7,4210.6,2.51710801]
[1758609861472,0.001,4210.7,4210.6,2.49335843]
[1758609861668,0.001,4210.7,4210.6,3.04891123]
[1758609862412,0.001,4210.7,4210.6,2.49335843]
[1758609863370,0.243,4210.7,4210.6,2.49335843]
[1758609863566,0.6795,4210.7,4210.6,2.49335843]
[1758609864087,0.243,4210.7,4210.6,2.49335843]